bitfinex/quotes_SOLUSD_20260119
["timestamp","ask_amount","ask_price","bid_price","bid_amount"]
[1768781119417,0.2,134.82,134.68,5.34408856]
[1768781119602,0.2,134.82,134.65,63.12648454]
[1768781119603,9.06214615,134.76,134.65,63.12648454]
[1768781119802,4.17733473,134.77,134.43,37.99189623]
[1768781120005,31.31811452,134.75,134.52,26.01843591]
[1768781120192,9.06214615,134.73,134.57,5.34408856]
[1768781120397,9.06214615,134.7,134.52,26.01843591]
[1768781120722,9.06214615,134.66,134.52,26.01843591]
[1768781120904,7.42115027,134.75,134.62,4.14381385]
[1768781121096,4.37733473,134.82,134.71,4.14381385]
[1768781121415,16.67953329,134.82,134.73,4.14381385]
[1768781121621,7.61738714,134.82,134.73,13.20596]
[1768781121920,4.17733473,134.81,134.69,4.14381385]
[1768781122217,9.06214615,134.78,134.69,4.14381385]
[1768781122424,13.28679224,134.7,134.57,4.19490286]
[1768781122595,4.22464609,134.7,134.61,7.4287545]
[1768781122791,16.18,134.77,134.65,7.42616278]
[1768781123011,16.18,134.77,134.7,0.18009616]
[1768781123216,25.24214615,134.77,134.7,0.18009616]
[1768781123416,4.18239962,134.76,134.7,0.13784969]
[1768781123620,16.18,134.77,134.66,4.19490286]
[1768781123826,0.2,134.82,134.76,9.06214615]
[1768781124119,9.06214615,134.79,134.67,4.19490286]
[1768781124296,0.2,134.82,134.73,9.06214615]
[1768781124496,0.2,134.82,134.74,4.19490286]
[1768781124724,7.61733636,134.82,134.7,4.19490286]
[1768781125222,7.61733636,134.82,134.73,9.06214615]
[1768781125424,9.06214615,134.8,134.7,4.19490286]
[1768781125597,9.06214615,134.71,134.63,4.19490286]
[1768781125798,25.66466418,134.79,134.65,20.6833832]
[1768781126008,9.06214615,134.72,134.65,16.48848034]
[1768781126206,4.14057562,134.76,134.62,4.19490286]
[1768781126407,16.18,134.79,134.7,4.19490286]
[1768781126703,4.14057562,134.7,134.58,4.19490286]
[1768781126902,9.06214615,134.71,134.65,7.42651412]
[1768781127107,4.14057562,134.78,134.65,7.42651412]
[1768781127108,9.06214615,134.73,134.65,7.42651412]
[1768781127320,23.59908284,134.79,134.69,4.19490286]
[1768781127526,9.06214615,134.77,134.65,11.62141698]
[1768781127724,9.06214615,134.75,134.66,4.19490286]
[1768781128018,9.06214615,134.74,134.65,7.4265014]
[1768781128219,11.56124122,134.76,134.65,7.4265014]
[1768781128425,4.14057562,134.72,134.6,4.19490286]
[1768781128604,9.06214615,134.71,134.63,9.06214615]
[1768781128798,9.06214615,134.72,134.64,7.4270711]
[1768781128997,9.06214615,134.72,134.56,0.1]
[1768781128998,9.06214615,134.65,134.56,0.1]
[1768781129199,16.18,134.68,134.57,13.25704901]
[1768781129421,16.18,134.68,134.6,9.06214615]
[1768781129724,16.18,134.68,134.58,4.19490286]
[1768781129934,16.18,134.68,134.56,0.1]
[1768781129935,9.06214615,134.64,134.56,0.1]
[1768781130095,9.06214615,134.63,134.56,0.1]
[1768781130299,9.06214615,134.61,134.56,0.1]
[1768781130523,9.06214615,134.59,134.56,0.1]
[1768781130820,9.22491046,134.63,134.56,0.02120358]
[1768781131021,25.9913857,134.66,134.56,0.02120358]
[1768781131203,9.06214615,134.62,134.56,0.02120358]
[1768781131397,9.06214615,134.58,134.48,7.98954685]
[1768781131612,68.46602527,134.66,134.54,9.06214615]
[1768781131613,66.94295884,134.66,134.54,9.06214615]
[1768781131901,9.06214615,134.59,134.51,4.19490286]
[1768781132109,29.82399389,134.6,134.5,9.06214615]
[1768781132313,26.00297176,134.6,134.52,9.06214615]
[1768781132502,46.29290455,134.67,134.53,4.19490286]
[1768781132702,3.82102213,134.66,134.53,4.19490286]
[1768781132898,34.82867274,134.67,134.59,9.06214615]
[1768781133137,25.76652659,134.67,134.61,9.06214615]
[1768781133329,3.82102213,134.74,134.64,9.06214615]
[1768781133499,16.18,134.76,134.62,4.19490286]
[1768781133842,9.06214615,134.71,134.57,4.19490286]
[1768781134037,9.06214615,134.64,134.57,4.19490286]
[1768781134248,3.82102213,134.69,134.55,9.06214615]
[1768781134529,3.82102213,134.68,134.55,4.19490286]
[1768781134715,9.06214615,134.64,134.56,4.19490286]
[1768781135027,9.06214615,134.58,134.52,4.19490286]
[1768781135214,16.18,134.65,134.55,13.25704901]
[1768781135412,9.06214615,134.61,134.51,4.19490286]
[1768781135723,9.06214615,134.61,134.53,9.06214615]
[1768781136028,9.06214615,134.59,134.53,7.43324268]
[1768781136224,16.49096426,134.62,134.55,9.06214615]
[1768781136410,9.06214615,134.6,134.53,4.19490286]
[1768781136605,25.99960996,134.62,134.49,4.19490286]
[1768781136811,7.42881811,134.62,134.54,4.19490286]
[1768781137133,9.06214615,134.55,134.47,7.43655737]
[1768781137426,5.34408856,134.58,134.46,15.425457]
[1768781137606,9.06214615,134.53,134.46,24.48760315]
[1768781137808,16.18,134.56,134.45,7.43766957]
[1768781137809,9.06214615,134.52,134.45,7.43766957]
[1768781138008,9.06214615,134.5,134.44,0.73646896]
[1768781138229,9.06214615,134.48,134.44,0.73646896]
[1768781138536,9.06214615,134.47,134.44,0.69787277]
[1768781138724,9.06214615,134.45,134.39,3.79464304]
[1768781138927,3.7828119,134.5,134.4,9.06214615]
[1768781139229,9.06214615,134.46,134.38,22.72561283]
[1768781139435,9.06214615,134.43,134.38,22.72561283]
[1768781139729,16.18,134.46,134.38,34.49926157]
[1768781139937,16.18,134.46,134.39,4.33221985]
[1768781140113,16.18,134.53,134.44,9.06214615]
[1768781140314,9.06214615,134.48,134.42,4.33221985]
[1768781140515,9.06214615,134.5,134.43,9.06214615]
[1768781140834,16.18,134.53,134.45,9.06214615]
[1768781141021,9.08596605,134.49,134.4,4.33221985]
[1768781141222,9.08596605,134.45,134.38,22.72561283]
[1768781141525,3.74498378,134.48,134.38,30.16696392]
[1768781141708,9.08596605,134.44,134.38,10.87552667]
[1768781141918,9.08596605,134.43,134.38,18.31707377]
[1768781142118,26.02037022,134.51,134.4,16.52601847]
[1768781142318,3.74498378,134.49,134.38,19.96149272]
[1768781142521,9.08596605,134.46,134.39,7.44090715]
[1768781142744,9.08596605,134.42,134.38,10.87552667]
[1768781142911,3.74498378,134.47,134.38,10.87552667]
[1768781143119,9.08596605,134.39,134.36,0.06255016]
[1768781143419,3.6704586,134.57,134.39,4.33221985]
[1768781143623,3.6704586,134.55,134.43,4.33221985]
[1768781143926,9.08596605,134.45,134.36,26.111763]
[1768781144137,16.2,134.55,134.44,9.08596605]
[1768781144338,16.2,134.55,134.45,4.33221985]
[1768781144521,3.6704586,134.61,134.53,9.08596605]
[1768781144721,11.09947056,134.61,134.52,9.08596605]
[1768781144920,9.08596605,134.59,134.48,4.33221985]
[1768781145124,9.08596605,134.58,134.51,9.08596605]
[1768781145420,9.08596605,134.58,134.48,4.33221985]
[1768781145643,9.08596605,134.57,134.5,9.08596605]
[1768781145945,3.6704586,134.56,134.43,4.33221985]
[1768781146147,9.08596605,134.54,134.47,9.08596605]
[1768781146446,9.08596605,134.52,134.45,9.08596605]
[1768781146619,3.6704586,134.56,134.44,30.36613832]
[1768781146825,9.08596605,134.53,134.46,9.08596605]
[1768781147020,9.08596605,134.5,134.44,7.43826242]
[1768781147221,19.8704586,134.52,134.42,9.08596605]
[1768781147422,16.2,134.52,134.46,9.08596605]
[1768781147643,16.2,134.52,134.48,9.08596605]
[1768781147874,11.10216119,134.56,134.45,4.33221985]
[1768781148049,16.2,134.56,134.5,9.08596605]
[1768781148246,11.1009149,134.59,134.52,9.08596605]
[1768781148442,3.6704586,134.69,134.58,9.08596605]
[1768781148637,7.62373487,134.71,134.65,9.08596605]
[1768781148945,9.08596605,134.7,134.63,9.08596605]
[1768781149150,0.2,134.71,134.69,9.08596605]
[1768781149332,30.1451765,134.78,134.57,37.8671513]
[1768781149536,9.08596605,134.75,134.68,9.08596605]
[1768781149737,30.1451765,134.78,134.72,9.08596605]
[1768781150046,3.72930324,134.77,134.69,9.08596605]
[1768781150229,22.72561283,134.78,134.72,9.08596605]
[1768781150424,22.72561283,134.78,134.74,9.08596605]
[1768781150636,22.72561283,134.78,134.76,9.08596605]
[1768781150850,30.14529488,134.78,134.73,9.08596605]
[1768781151022,9.08596605,134.76,134.66,4.33221985]
[1768781151226,9.08596605,134.72,134.63,4.33221985]
[1768781151426,25.28596605,134.71,134.65,9.08596605]
[1768781151662,9.08596605,134.69,134.62,9.08596605]
[1768781151836,16.2,134.71,134.62,9.08596605]
[1768781152032,16.2,134.71,134.62,16.51424862]
[1768781152364,3.72930324,134.77,134.65,4.27009427]
[1768781152661,7.42004897,134.77,134.65,4.27009427]
[1768781152876,35.05613745,134.77,134.7,9.08596605]
[1768781153167,25.9701714,134.77,134.69,9.08596605]
[1768781153342,22.72561283,134.78,134.74,9.08596605]
[1768781153539,39.23122924,134.78,134.68,4.27009427]
[1768781153751,9.08596605,134.74,134.63,4.27009427]
[1768781154062,9.08596605,134.72,134.66,9.08596605]
[1768781154245,9.08596605,134.74,134.67,9.08596605]
[1768781154561,25.97402596,134.75,134.67,9.08596605]
[1768781154742,9.08596605,134.74,134.66,4.27009427]
[1768781155058,16.50601502,134.77,134.69,4.27009427]
[1768781155271,9.08596605,134.76,134.66,30.26147767]
[1768781155474,9.08596605,134.76,134.59,5.34408856]
[1768781155475,3.72930324,134.76,134.59,4.27009427]
[1768781155651,9.08596605,134.7,134.64,9.08596605]
[1768781155833,5.34408856,134.74,134.66,9.08596605]
[1768781156038,9.08596605,134.72,134.65,9.08596605]
[1768781156257,7.42115027,134.75,134.66,9.08596605]
[1768781156559,9.08596605,134.71,134.64,9.08596605]
[1768781156763,22.73768091,134.96,134.6,37.4550151]
[1768781156949,8.59548521,134.96,134.74,9.96651084]
[1768781157153,8.59548521,134.96,134.66,25.9913857]
[1768781157154,4.30448081,134.96,134.76,2.0]
[1768781157336,4.30448081,134.96,134.73,2.0]
[1768781157540,9.08596605,134.81,134.7,2.0]
[1768781157765,9.08596605,134.78,134.66,68.46602527]
[1768781157948,16.18,134.85,134.69,9.08596605]
[1768781158265,37.3931767,134.94,134.69,7.42393631]
[1768781158437,9.08596605,134.93,134.85,16.18]
[1768781158641,4.30448081,134.96,134.81,9.08596605]
[1768781158837,9.08596605,134.92,134.83,9.08596605]
[1768781159042,37.4369207,135.25,134.86,9.08596605]
[1768781159241,16.18,134.99,134.82,4.27009427]
[1768781159443,9.08596605,135.09,134.98,9.08596605]
[1768781159668,16.18,135.15,135.04,9.08596605]
[1768781159855,16.18,135.15,134.98,4.27009427]
[1768781159856,9.08596605,135.12,134.98,4.27009427]
[1768781160069,9.08596605,135.12,135.03,9.08596605]
[1768781160370,7.40137665,135.11,134.94,4.27009427]
[1768781160665,16.18,135.14,135.03,7.40562705]
[1768781160874,9.08596605,135.12,135.03,7.40562705]
[1768781161170,4.2910044,135.25,135.03,25.92003125]
[1768781161363,13.37697045,135.07,134.93,4.27009427]
[1768781161542,13.37697045,135.07,135.03,7.40574117]
[1768781161543,16.18,135.07,135.03,7.40574117]
[1768781161743,20.4710044,135.11,135.03,35.00611142]
[1768781161952,16.18,135.14,135.08,9.08596605]
[1768781162152,23.57977469,135.14,135.0,4.27009427]
[1768781162358,9.08596605,135.05,134.96,4.27009427]
[1768781162563,16.18,135.21,135.01,4.27009427]
[1768781162743,9.08596605,135.14,135.06,9.08596605]
[1768781162944,31.37596605,135.2,135.01,4.27009427]
[1768781163151,9.08596605,135.1,134.97,4.27009427]
[1768781163351,9.08596605,135.07,134.97,4.27009427]
[1768781163657,16.16,135.07,135.02,9.08596605]
[1768781163955,16.08577,135.07,134.98,9.08596605]
[1768781164272,20.3767744,135.07,134.99,16.49392219]
[1768781164578,16.16,135.12,135.06,9.08596605]
[1768781164749,16.16,135.12,135.04,4.27009427]
[1768781164949,4.2910044,135.19,135.04,4.27009427]
[1768781165178,20.4510044,135.18,135.09,9.08596605]
[1768781165383,4.2910044,135.17,135.03,4.27009427]
[1768781165558,25.88757396,135.2,135.06,4.27009427]
[1768781165869,4.2910044,135.18,135.08,13.35606032]
[1768781166077,4.2910044,135.18,135.09,9.08596605]
[1768781166278,4.2910044,135.15,135.0,4.27009427]
[1768781166476,4.2910044,135.12,135.03,7.4057365]
[1768781166678,9.08596605,135.09,135.03,7.4057365]
[1768781166876,13.37697045,135.08,134.98,18.52094016]
[1768781167090,16.16,135.07,135.02,9.08596605]
[1768781167375,16.16,135.12,135.06,9.08596605]
[1768781167577,16.16,135.12,135.03,25.9198613]
[1768781167783,16.16,135.12,134.93,37.20339271]
[1768781167784,9.08596605,135.08,134.93,4.27009427]
[1768781167957,9.08596605,135.02,134.92,4.27009427]
[1768781168161,9.08596605,135.02,134.73,0.74222519]
[1768781168162,25.24596605,135.01,134.94,16.49657545]
[1768781168364,16.16,135.01,134.94,7.4106094]
[1768781168563,4.2910044,135.04,134.96,9.08596605]
[1768781168765,25.24596605,135.04,134.94,25.93690799]
[1768781168967,9.08596605,135.02,134.96,9.08596605]
[1768781169289,4.2910044,135.09,135.0,9.08596605]
[1768781169459,16.16,135.08,134.98,4.27009427]
[1768781169783,9.08596605,135.01,134.95,9.08596605]
[1768781169975,9.08596605,134.97,134.89,7.51343602]
[1768781170176,16.16,134.96,134.89,0.1]
[1768781170375,9.08596605,134.94,134.87,9.08596605]
[1768781170567,4.2910044,134.97,134.93,9.08596605]
[1768781170775,20.78615832,134.97,134.9,9.08596605]
[1768781171094,11.70019227,134.97,134.87,9.08596605]
[1768781171259,9.08596605,134.92,134.84,7.41619697]
[1768781171465,9.08596605,134.89,134.84,7.41619697]
[1768781171766,25.24596605,134.88,134.78,41.36587061]
[1768781171968,9.08596605,134.87,134.75,4.27009427]
[1768781172192,16.16,134.88,134.83,7.41660905]
[1768781172355,18.52865546,134.93,134.84,9.08596605]
[1768781172561,9.08596605,134.89,134.8,30.2331779]
[1768781173093,9.08596605,134.86,134.79,16.50484611]
[1768781173259,25.24596605,134.85,134.76,4.27009427]
[1768781173461,16.16,134.85,134.78,9.08596605]
[1768781173658,16.16,134.85,134.79,7.41868108]
[1768781173983,9.08596605,134.84,134.79,7.41878742]
[1768781174154,31.2853871,134.92,134.8,4.27009427]
[1768781174359,16.16,134.91,134.82,7.4172056]
[1768781174586,25.24596605,134.91,134.84,9.08596605]
[1768781174787,4.2910044,134.87,134.78,7.41941949]
[1768781174958,9.08596605,134.84,134.77,9.08596605]
[1768781175161,4.2910044,134.87,134.76,4.27009427]
[1768781175399,4.2910044,134.9,134.8,4.27009427]
[1768781175688,4.2910044,134.94,134.83,4.27009427]
[1768781175888,9.08596605,134.91,134.82,11.68715084]
[1768781176095,4.2910044,134.9,134.79,9.08596605]
[1768781176259,4.2910044,134.94,134.84,9.08596605]
[1768781176589,20.4510044,134.93,134.81,4.27009427]
[1768781176792,9.08596605,134.88,134.81,13.35606032]
[1768781177287,9.08596605,134.83,134.78,7.4194143]
[1768781177478,16.16,134.82,134.78,7.41934051]
[1768781177985,16.16,134.83,134.79,7.41840911]
[1768781178191,16.16,134.84,134.79,7.41840911]
[1768781178483,62.99106515,134.94,134.72,4.27009427]
[1768781178484,20.4510044,134.83,134.72,4.27009427]
[1768781178683,9.08596605,134.76,134.71,22.53768091]
[1768781178888,9.08596605,134.75,134.71,22.53768091]
[1768781179073,16.16,134.74,134.71,22.53768091]
[1768781179279,9.08596605,134.73,134.71,22.53768091]
[1768781179590,9.08596605,134.73,134.71,11.05538729]
[1768781179798,9.08596605,134.73,134.65,22.83540081]
[1768781179994,16.16,134.72,134.58,4.27009427]
[1768781180163,9.08596605,134.64,134.58,4.27009427]
[1768781180365,7.42170105,134.74,134.62,4.27009427]
[1768781180666,9.08596605,134.68,134.6,11.69947515]
[1768781180866,9.59218291,134.7,134.6,11.69947515]
[1768781181284,9.08596605,134.62,134.55,55.73945608]
[1768781181467,25.24596605,134.65,134.59,4.27009427]
[1768781181681,9.08596605,134.63,134.56,7.43118807]
[1768781181885,16.16,134.64,134.55,4.27009427]
[1768781182090,16.16,134.64,134.57,7.43096069]
[1768781182295,9.08596605,134.61,134.56,7.43149637]
[1768781182480,9.08596605,134.59,134.52,18.58430103]
[1768781182679,9.08596605,134.57,134.54,7.43240497]
[1768781182988,9.08596605,134.57,134.51,4.0949149]
[1768781183192,16.16,134.58,134.53,13.18088095]
[1768781183395,16.16,134.58,134.54,4.0949149]
[1768781183591,7.42587816,134.67,134.56,4.0949149]
[1768781183904,9.08596605,134.64,134.58,4.0949149]
[1768781184106,25.24596605,134.66,134.58,9.08596605]
[1768781184292,9.08596605,134.61,134.55,7.43195132]
[1768781184482,16.16,134.66,134.47,37.11817339]
[1768781184483,9.08596605,134.59,134.49,7.43549706]
[1768781184684,9.08596605,134.59,134.5,9.08596605]
[1768781185087,20.48180945,134.66,134.56,9.08596605]
[1768781185455,20.48180945,134.66,134.49,63.20172502]
[1768781185456,4.32180945,134.66,134.58,9.08596605]
[1768781185708,37.11499553,134.82,134.49,63.94527472]
[1768781185709,16.16,134.68,134.64,9.08596605]
[1768781186090,4.32180945,134.76,134.66,9.08596605]
[1768781186293,16.16,134.75,134.64,4.0949149]
[1768781186501,9.08596605,134.73,134.64,11.52170338]
[1768781186805,9.08596605,134.7,134.62,9.08596605]
[1768781187103,7.42170105,134.74,134.58,4.0949149]
[1768781187104,9.08596605,134.67,134.58,4.0949149]
[1768781187303,9.08596605,134.65,134.57,18.57680613]
[1768781187510,20.50180945,134.66,134.55,4.0949149]
[1768781187691,5.34408856,134.71,134.62,7.42829116]
[1768781187692,4.32180945,134.69,134.62,7.42829116]
[1768781187884,4.32180945,134.63,134.51,4.0949149]
[1768781188219,9.08596605,134.6,134.52,13.18088095]
[1768781188521,9.08596605,134.58,134.52,30.11249911]
[1768781188683,25.26596605,134.59,134.52,30.11249911]
[1768781188883,16.18,134.59,134.52,39.19846516]
[1768781189104,9.08596605,134.57,134.51,7.43399602]
[1768781189307,9.08596605,134.57,134.52,7.43376869]
[1768781189511,9.08596605,134.57,134.5,7.43455352]
[1768781189898,9.08596605,134.57,134.51,7.43392599]
[1768781190104,13.4077755,134.55,134.48,7.43592983]
[1768781190305,4.32180945,134.53,134.45,7.43765531]
[1768781190524,11.75659992,134.51,134.41,3.79815209]
[1768781190706,16.18,134.5,134.41,3.79815209]
[1768781191017,16.18,134.5,134.39,26.04360442]
[1768781191018,9.08596605,134.46,134.39,7.44102983]
[1768781191322,26.02059269,134.51,134.37,0.1]
[1768781191495,5.34408856,134.48,134.37,0.1]
[1768781191701,4.32180945,134.46,134.37,0.1]
[1768781191897,20.50180945,134.57,134.46,4.0949149]
[1768781192097,4.32180945,134.55,134.46,4.0949149]
[1768781192309,13.4077755,134.55,134.46,4.0949149]
[1768781192506,7.43273375,134.54,134.43,22.69145386]
[1768781192824,7.43273375,134.54,134.46,9.08596605]
[1768781193020,26.01456814,134.54,134.44,7.43816973]
[1768781193223,9.08596605,134.45,134.35,4.0949149]
[1768781193515,30.33637759,134.54,134.26,37.28575315]
[1768781193516,16.18,134.44,134.34,4.0949149]
[1768781193719,16.18,134.44,134.14,0.74548978]
[1768781193720,16.18,134.43,134.38,4.0949149]
[1768781193911,11.68,134.43,134.41,9.08596605]
[1768781194217,7.18,134.43,134.37,7.54207315]
[1768781194421,16.18,134.44,134.42,9.08596605]
[1768781194621,16.18,134.44,134.4,9.08596605]
[1768781194798,16.18,134.44,134.37,0.1]
[1768781194999,9.08596605,134.43,134.37,0.1]
[1768781195198,9.08596605,134.39,134.37,0.1]
[1768781195408,16.18,134.44,134.3,9.08596605]
[1768781195730,16.18,134.43,134.34,7.4433004]
[1768781196020,16.18,134.43,134.36,9.08596605]
[1768781196221,20.50180945,134.43,134.35,7.44321148]
[1768781196426,9.66589801,134.46,134.36,9.08596605]
[1768781196728,16.2,134.45,134.37,7.44213738]
[1768781196906,16.2,134.45,134.39,9.08596605]
[1768781197223,13.4077755,134.43,134.32,18.61121257]
[1768781197435,4.32180945,134.42,134.36,9.08596605]
[1768781197716,20.52180945,134.45,134.36,26.04891692]
[1768781198023,15.30360102,134.44,134.36,26.9453159]
[1768781198208,28.64955941,134.44,134.36,7.44218873]
[1768781198412,13.34595839,134.43,134.36,9.08596605]
[1768781198614,13.34595839,134.43,134.37,9.08596605]
[1768781198615,4.25999234,134.43,134.37,9.08596605]
[1768781198812,13.34595839,134.5,134.42,9.08596605]
[1768781199123,4.25999234,134.43,134.36,7.4424768]
[1768781199322,16.2,134.46,134.25,37.18198107]
[1768781199323,4.25999234,134.41,134.25,37.18198107]
[1768781199523,4.25999234,134.42,134.25,18.72070931]
[1768781199828,9.08596605,134.34,134.27,9.08596605]
[1768781200122,9.08596605,134.31,134.25,0.1]
[1768781200332,20.45999234,134.33,134.26,9.08596605]
[1768781200532,20.45999234,134.33,134.27,7.44747153]
[1768781200823,20.45999234,134.33,134.26,18.62055092]
[1768781200824,16.2,134.33,134.26,18.62055092]
[1768781201001,4.25999234,134.3,134.25,0.1]
[1768781201205,4.25999234,134.28,134.25,0.1]
[1768781201396,4.25999234,134.27,134.25,0.1]
[1768781201923,42.25529093,134.33,134.25,1e-08]
[1768781201924,4.25999234,134.26,134.25,1e-08]
[1768781202128,4.25999234,134.25,134.14,7.45446332]
[1768781202324,20.45999234,134.24,134.18,9.08596605]
[1768781202630,4.25999234,134.23,134.17,9.08596605]
[1768781202800,4.25999234,134.23,134.11,26.09797926]
[1768781203308,16.2,134.24,134.22,9.12500144]
[1768781203536,4.25999234,134.29,134.14,37.87140582]
[1768781203537,16.2,134.28,134.23,9.12500144]
[1768781203859,16.2,134.3,134.19,5.34408856]
[1768781204133,7.44571583,134.31,134.11,63.38080678]
[1768781204134,9.12500144,134.24,134.11,63.38080678]
[1768781204332,13.38499378,134.2,134.12,9.12500144]
[1768781204502,5.34408856,134.26,134.09,63.4998986]
[1768781204503,16.2,134.19,134.09,63.4998986]
[1768781204816,9.12500144,134.25,134.18,9.12500144]
[1768781205242,4.25999234,134.26,134.17,9.12500144]
[1768781205416,4.25999234,134.26,134.19,9.12500144]
[1768781205740,4.25999234,134.24,134.1,5.34408856]
[1768781205901,4.25999234,134.24,134.09,26.84763962]
[1768781205902,13.38499378,134.21,134.09,26.10187186]
[1768781206205,13.38499378,134.21,134.13,9.12500144]
[1768781206403,4.25999234,134.26,134.09,100.78828699]
[1768781206608,13.38499378,134.23,134.15,9.12500144]
[1768781206808,4.25999234,134.25,134.17,7.45320893]
[1768781207028,4.25999234,134.24,134.18,9.12500144]
[1768781207228,23.64618027,134.3,134.23,9.12500144]
[1768781207401,9.12500144,134.29,134.22,9.12500144]
[1768781207606,32.77118171,134.3,134.22,9.12500144]
[1768781207813,32.77118171,134.3,134.21,9.12500144]
[1768781207814,4.25999234,134.29,134.21,9.12500144]
[1768781208031,4.25999234,134.32,134.26,9.12500144]
[1768781208228,11.70505956,134.32,134.26,9.12500144]
[1768781208411,4.25999234,134.32,134.21,5.34408856]
[1768781208606,31.99446847,134.35,134.22,26.07659066]
[1768781208803,13.38499378,134.35,134.28,9.12500144]
[1768781209007,4.25999234,134.42,134.3,9.12500144]
[1768781209209,11.69936148,134.42,134.35,9.12500144]
[1768781209434,9.12500144,134.37,134.29,5.34408856]
[1768781209731,9.12500144,134.31,134.22,26.07659066]
[1768781209912,9.12500144,134.31,134.22,35.2015921]
[1768781210107,9.12500144,134.31,134.22,26.07659066]
[1768781210512,4.25999234,134.33,134.22,26.07659066]
[1768781210835,9.12500144,134.3,134.22,9.12500144]
[1768781211028,13.38499378,134.3,134.18,26.08436428]
[1768781211230,4.25999234,134.3,134.18,26.08436428]
[1768781211726,11.70212972,134.37,134.28,9.12500144]
[1768781212044,4.25999234,134.36,134.28,9.12500144]
[1768781212209,16.22,134.38,134.32,9.12500144]
[1768781212409,16.22,134.38,134.34,9.12500144]
[1768781212830,4.38857608,134.37,134.3,7.44601353]
[1768781213029,13.51357752,134.35,134.19,0.74521201]
[1768781213216,4.38857608,134.32,134.24,7.44880582]
[1768781213414,42.26578641,134.38,134.09,37.39802674]
[1768781213415,9.12500144,134.29,134.09,37.39802674]
[1768781213616,13.51357752,134.29,134.2,16.57655722]
[1768781213818,13.51357752,134.29,134.14,37.27416006]
[1768781213819,4.38857608,134.26,134.14,0.1]
[1768781214016,9.12500144,134.24,134.16,9.12500144]
[1768781214216,4.38857608,134.26,134.14,0.1]
[1768781214442,4.38857608,134.26,134.15,7.45434215]
[1768781214443,4.38857608,134.23,134.15,7.45434215]
[1768781214614,9.12500144,134.22,134.15,9.12500144]
[1768781214814,4.38857608,134.23,134.14,0.1]
[1768781215117,4.38857608,134.22,134.14,0.1]
[1768781215327,9.12500144,134.2,134.14,0.1]
[1768781215529,13.51357752,134.2,134.14,0.1]
[1768781215713,4.38857608,134.2,134.14,9.22500144]
[1768781215919,4.38857608,134.22,134.14,9.22500144]
[1768781216121,13.51357752,134.21,134.14,0.1]
[1768781216431,4.38857608,134.2,134.14,0.1]
[1768781216632,13.51357752,134.19,134.14,0.1]
[1768781217018,16.22,134.2,134.14,0.1]
[1768781217213,9.12500144,134.17,134.14,0.1]
[1768781217612,9.12500144,134.15,134.05,26.10966057]
[1768781217833,13.51357752,134.15,134.06,9.12500144]
[1768781218039,9.12500144,134.14,134.06,9.12500144]
[1768781218236,4.38857608,134.19,134.08,9.12500144]
[1768781218444,9.12500144,134.18,134.05,7.45990302]
[1768781218654,25.34500144,134.2,134.12,9.12500144]
[1768781218813,16.22,134.2,134.13,9.12500144]
[1768781219020,16.22,134.2,134.15,9.12500144]
[1768781219225,16.22,134.2,134.14,9.12500144]
[1768781219542,16.22,134.2,134.07,5.34408856]
[1768781219543,4.38857608,134.27,134.12,5.34408856]
[1768781219719,4.38857608,134.27,134.19,9.12500144]
[1768781219919,9.12500144,134.24,134.11,5.34408856]
[1768781220140,13.51357752,134.24,134.18,9.12500144]
[1768781220355,9.12500144,134.24,134.12,5.34408856]
[1768781220644,16.24,134.29,134.21,9.12500144]
[1768781220645,7.4471254,134.28,134.21,9.12500144]
[1768781220954,7.4471254,134.28,134.14,5.34408856]
[1768781220955,4.38857608,134.24,134.11,5.34408856]
[1768781221123,9.12500144,134.22,134.17,7.45298636]
[1768781221457,7.44638229,134.3,134.16,5.34408856]
[1768781221628,7.44638229,134.3,134.04,22.91354475]
[1768781221629,4.38857608,134.24,134.11,5.34408856]
[1768781221828,4.38857608,134.2,134.1,7.45712155]
[1768781222129,9.12500144,134.15,134.07,7.45864589]
[1768781222328,4.38857608,134.14,134.05,9.12500144]
[1768781222645,4.38857608,134.16,134.07,7.45861335]
[1768781222844,20.96778324,134.16,134.09,9.12500144]
[1768781223045,4.38857608,134.16,134.09,9.12500144]
[1768781223229,13.51357752,134.13,134.04,22.91354475]
[1768781223539,4.38857608,134.13,134.06,7.45902161]
[1768781223742,4.38857608,134.16,134.1,9.12500144]
[1768781224128,30.47703758,134.16,134.08,9.12500144]
[1768781224333,4.31405608,134.15,134.06,7.45902161]
[1768781224529,7.4539952,134.16,134.08,9.12500144]
[1768781224847,16.24,134.23,134.13,9.12500144]
[1768781225024,16.24,134.23,134.09,0.07452]
[1768781225025,9.12500144,134.14,134.05,7.45990302]
[1768781225218,5.34408856,134.2,134.05,7.45990302]
[1768781225219,9.12500144,134.13,134.05,26.10966057]
[1768781225528,5.34408856,134.2,134.07,9.12500144]